[Event "55th Iranian-ch Men Final 2022"]
[Site "Iran"]
[Date "2022.06.16"]
[Round "2.1"]
[White "Mosadeghpour, Masoud"]
[Black "Ghaem Maghami, Ehsan"]
[Result "1/2-1/2"]
[ECO "C45"]
[WhiteElo "2474"]
[BlackElo "2519"]
[Annotator "TA"]
[PlyCount "109"]
[EventDate "2022.06.15"]
[EventType "tourn"]
[EventCountry "IRI"]
[SourceTitle "playchess.com"]
[Source "ChessBase"]
[SourceQuality "1"]
[TimeControl "40/5400+30:1800+30"]

{[%evp 11,109,-10,0,0,0,0,0,0,0,0,0,0,9,6,0,0,10,0,0,0,0,0,0,0,0,0,0,0,0,0,0,0,0,0,0,0,24,0,1,0,0,0,6,0,0,0,0,0,0,0,0,0,8,8,3,0,0,1,2,0,0,0,12,0,0,0,0,0,0,0,0,0,0,0,0,0,0,8,8,7,10,5,62,8,8,8,8,8,8,0,0,0,0,0,35,0,0,0,0,0]} 1. e4 {[%emt 0:05:59]} e5 {[%emt 0:03:13]} 2. Nf3 {[%emt 0:01:58]} Nc6 {[%emt 0:00:14]} 3. d4 {[%emt 0:02:00]} exd4 {[%emt 0:00:08]} 4. Nxd4 {[%emt 0:00:08]} Nf6 {[%emt 0:05:10]} 5. Nxc6 {[%emt 0:01:03]} bxc6 {[%emt 0:00:09]} 6. Nd2 {[%emt 0:01:31]} d5 {[%emt 0:00:55]} 7. exd5 {[%emt 0:01:47] C45: Scotch Game.} cxd5 {[%emt 0:00:58]} 8. Bb5+ {[%emt 0:00:08]} Bd7 {[%emt 0:00:09]} 9. Bxd7+ {[%emt 0:00:04]} Qxd7 {[%emt 0:00:09]} 10. O-O {[%emt 0:00:06]} Be7 {[%emt 0:00:41]} 11. b3 {[%emt 0:00:12]} O-O {[%emt 0:00:57]} 12. Bb2 {[%emt 0:00:05]} Rfe8 {[%emt 0:08:21] 12...a5 is the fancy move.} 13. Re1 {[%emt 0:02:04]} Ng4 {[%emt 0:07:00]} 14. Ne4 {[%emt 0:22:57][%cal Bd2e4,Be4g3,Bg3f5,Bf5e7,Be7d5][%mdl 32] [#]} Bf8 $146 {[%emt 0:24:59]} ({Predecessor:} 14... f5 15. Ng3 Bc5 16. Rf1 Qe6 17. Qf3 f4 18. Nh5 Nxf2 19. Nxg7 Ne4+ 20. Kh1 Qg6 21. Qxf4 Rf8 22. Qe5 Nf2+ 23. Rxf2 Bxf2 24. Qxd5+ Qf7 25. Nf5 {1-0 (25) Sahin,O (2266)-Pandey,S (2066) Novi Sad 2021}) 15. Qd2 {[%emt 0:27:19]} Qc6 {[%emt 0:12:56]} 16. Ng3 {[%emt 0:05:57]} Bc5 {[%emt 0:01:59]} 17. Bd4 {[%emt 0:06:46]} Bxd4 {[%emt 0:01:29]} 18. Qxd4 {[%emt 0:00:03]} Nf6 {[%emt 0:00:13]} 19. Nf5 {[%emt 0:06:10] [#] And now Ne7+ would win.} Qxc2 {[%emt 0:16:14]} 20. Ne7+ {[%emt 0:01:48]} Kf8 {[%emt 0:01:47]} 21. Nxd5 {[%emt 0:05:54]} c5 {[%emt 0:04:38]} 22. Qc3 {[%emt 0:02:42]} Qxc3 {[%emt 0:01:58]} 23. Nxc3 {[%emt 0:00:02]} Rad8 {[%emt 0:01:26]} 24. Rxe8+ {[%emt 0:02:51]} Kxe8 $11 {[%emt 0:00:50][%mdl 4096] Endgame KRN-KRN} 25. Re1+ {[%emt 0:01:34]} Kf8 {[%emt 0:01:34]} 26. Kf1 {[%emt 0:01:02]} Rd4 {[%emt 0:04:26] Prevents Ne4.} 27. Rd1 {[%emt 0:01:14]} Rxd1+ {[%emt 0:00:51]} 28. Nxd1 {[%emt 0:00:01] KN-KN} Nd5 {[%emt 0:00:15]} 29. Ke2 {[%emt 0:00:38]} Ke7 {[%emt 0:00:12]} 30. Kd2 {[%emt 0:00:50]} Kd6 {[%emt 0:01:05]} 31. Ne3 {[%emt 0:00:27]} Ne7 {[%emt 0:00:19] Against Nf5+} 32. Kd3 {[%emt 0:00:19]} a6 {[%emt 0:00:36]} 33. Ke4 {[%emt 0:00:36]} Ke6 {[%emt 0:00:35]} 34. g4 {[%emt 0:00:35]} Nc8 {[%emt 0:00:29]} 35. Nc4 {[%emt 0:00:37]} Ne7 {[%emt 0:00:09]} 36. Ne3 {[%emt 0:00:24]} Nc8 {[%emt 0:00:01]} 37. f4 {[%emt 0:00:35] [#] Threatens to win with f5+.} Nd6+ {[%emt 0:00:17]} 38. Kd3 {[%emt 0:00:07]} h6 {[%emt 0:00:49]} 39. Nc4 {[%emt 0:00:35]} Ne8 {[%emt 0:00:31]} 40. Ne3 {[%emt 0:00:00]} Nd6 {[%emt 0:00:00]} 41. Nc4 {[%emt 0:18:08]} Ne8 {[%emt 0:02:14]} 42. Nb6 {[%emt 0:06:35]} Nd6 {[%emt 0:13:46]} 43. Na4 {[%emt 0:05:14]} Kd5 {[%emt 0:00:30]} 44. Nc3+ {[%emt 0:00:07]} Kc6 {[%emt 0:01:00]} 45. Ne4 {[%emt 0:03:04]} Nb5 {[%emt 0:10:52]} 46. h4 {[%emt 0:00:39]} Nc7 {[%emt 0:00:51]} (46... Kd5 $11) 47. Nc3 {[%emt 0:00:32]} ({Better is} 47. Kc4 $14) 47... g6 {[%emt 0:01:34]} 48. Ke4 {[%emt 0:00:26] Strongly threatening Ke5.} Kd6 {[%emt 0:00:39]} 49. g5 {[%emt 0:00:35]} hxg5 {[%emt 0:00:53]} 50. hxg5 {[%emt 0:00:28]} Ne8 {[%emt 0:01:49]} 51. Kd3 {[%emt 0:00:32]} Kc6 {[%emt 0:00:13]} 52. Nd1 {[%emt 0:00:27]} f6 {[%emt 0:00:26]} 53. Ne3 {[%emt 0:00:34]} (53. f5 $5 gxf5 54. g6 $11) 53... fxg5 {[%emt 0:00:10]} 54. fxg5 {[%emt 0:00:04]} Nd6 {[%emt 0:00:04]} 55. Ng2 {[%emt 0:00:52] A balanced but interesting game.  Weighted Error Value: White=0.05 (flawless) /Black=0.04 (flawless)} 1/2-1/2

[Event "55th Iranian-ch Men Final 2022"]
[Site "Iran"]
[Date "2022.06.16"]
[Round "2.2"]
[White "Mousavi, Seyed Khalil"]
[Black "Ashraf, Artin"]
[Result "1/2-1/2"]
[ECO "B12"]
[WhiteElo "2524"]
[BlackElo "2096"]
[Annotator "TA"]
[PlyCount "89"]
[EventDate "2022.06.15"]
[EventType "tourn"]
[EventCountry "IRI"]
[SourceTitle "playchess.com"]
[Source "ChessBase"]
[SourceQuality "1"]
[TimeControl "40/5400+30:1800+30"]

{[%evp 9,89,0,17,12,10,12,12,0,13,5,45,2,4,-69,0,0,0,0,0,0,156,210,381,363,570,186,176,183,179,176,183,91,84,82,85,66,67,68,60,66,167,153,164,0,3,-21,-37,-500,-513,-614,-220,-558,-550,-523,-536,-529,-516,-986,0,0,0,0,0,0,0,0,0,0,0,0,0,0,0,0,0,0,0,-29993,0,0,0,0]} 1. e4 {[%emt 0:01:00]} c6 {[%emt 0:03:28]} 2. d4 {[%emt 0:00:09]} d5 {[%emt 0:00:09]} 3. f3 {[%emt 0:00:55]} Qb6 {[%emt 0:04:02]} 4. Nc3 {[%emt 0:00:32]} dxe4 {[%emt 0:00:27]} 5. fxe4 {[%emt 0:01:05]} e5 $1 {[%emt 0:00:10]} 6. Nf3 {[%emt 0:01:13] B12: Caro-Kann: Advance Variation.} exd4 {[%emt 0:00:34]} 7. Nxd4 $1 {[%emt 0:00:07] 7.Nxd4 is better than 7.Qxd4.} Bc5 {[%emt 0:04:28]} 8. Na4 {[%emt 0:03:12]} Qa5+ {[%emt 0:01:02]} 9. c3 {[%emt 0:00:32] Active counter play!} Be7 {[%emt 0:11:27]} 10. Bf4 {[%emt 0:10:11]} Nf6 {[%emt 0:06:39]} 11. Bd3 {[%emt 0:19:54]} (11. b4 $11 Qd8 12. Qc2) 11... O-O {[%emt 0:15:17]} (11... b5 $1 $15 12. Bxb8 Rxb8 13. Nxc6 Qc7 14. Nxb8 Qxb8) 12. O-O $11 {[%emt 0:05:08][%cal Bh1f1,Bf1f4,Bf4f5,Bf5h5][%mdl 32] Black must now prevent e5.} b5 {[%emt 0:06:48] [#]} 13. e5 $146 {[%emt 0:12:49][%mdl 2048] White fights for an advantage.} (13. Bxb8 Rxb8 14. e5 (14. Nxc6 $2 Qc7 $19) 14... bxa4 $17) ({Predecessor:} 13. Bxb8 Rxb8 14. Nxc6 Qc7 15. Nxb8 bxa4 16. Na6 Bxa6 17. Bxa6 Qb6+ 18. Kh1 Qxa6 19. Qf3 {0-1 (46) Haitovich,A (1929)-Reprun,N (1969) Skopje 2015}) 13... Nd5 {[%emt 0:05:20]} 14. e6 {[%emt 0:02:20]} (14. Qh5 $2 g6 15. Qe2 Nxf4 16. Rxf4 bxa4 $19) 14... Nxf4 {[%emt 0:06:33]} (14... fxe6 $11 15. Bxb8 Rxf1+ 16. Qxf1 Bd7) 15. Rxf4 $16 {[%emt 0:05:46][%cal Od3h7]} bxa4 $2 {[%emt 0:05:46]} (15... Bxe6 {keeps fighting.} 16. Qe2 (16. Qh5 g6 $11) 16... Qd8) 16. Rf5 $1 $18 {[%emt 0:04:12]} Qd8 {[%emt 0:01:22]} (16... Bc5 $142) 17. exf7+ $2 {[%emt 0:01:27]} (17. Qh5 {[%cal Rf5f7]} g6 18. Qh6 $1 fxe6 19. Rh5 $1) 17... Kh8 {[%emt 0:03:00]} 18. Rh5 {[%emt 0:01:35][%csl Gd3][%cal Rh5h7]} h6 {[%emt 0:04:06]} (18... Rxf7 19. Rxh7+ Kg8 20. Rh8+ $3 {[%mdl 512]} Kxh8 21. Qh5+ Kg8 22. Qh7+ Kf8 23. Qh8#) 19. Qf3 {[%emt 0:04:05]} Ba6 {[%emt 0:04:21]} (19... Bf6 20. Qe4) 20. Bc2 {[%emt 0:04:57]} (20. Be4 $1 $18 {and White stays clearly on top. Intending Qf5 and mate.} Nd7 21. Nxc6 (21. Qf5 Nf6 $16) 21... Qb6+ 22. Kh1) 20... Nd7 $16 {[%emt 0:00:35] ...Nf6 is the strong threat.} (20... Bf6 {gets mated.} 21. Qe4) 21. Qxc6 {[%emt 0:09:06] Threatening mate with Rxh6+.} Qb6 {[%emt 0:04:35] Hoping for ...Qxc6.} 22. Qe4 {[%emt 0:02:11][%csl Gc2][%cal Re4h7]} Nf6 {[%emt 0:00:06] Prevents Qh7+.} 23. Qg6 {[%emt 0:00:41][%cal Oh5h6] Rxh6+! would kill now. Dancing on a razor blade.} Rxf7 $1 {[%emt 0:01:20]} 24. Qxf7 {[%emt 0:00:25]} Qxb2 {[%emt 0:01:27] [#]} ({Better is} 24... Nxh5 $14 25. Qxh5 (25. Qxe7 Qxb2 26. Re1 Nf6 $16) 25... Rf8) 25. Rd1 $1 $18 {[%emt 0:05:16]} Nxh5 {[%emt 0:00:40]} 26. Qxe7 {[%emt 0:02:37]} ({Only move:} 26. Qxh5 $18 Bc4 27. Qf3 (27. Qg6 Bg8 $15)) 26... Nf6 $11 {[%emt 0:00:40][%cal Bh5f6,Bf6g4,Bg4f2,Bf2d1][%mdl 32]} 27. Ne6 {[%emt 0:01:55][%csl Ge6][%cal Re7g7]} Rg8 {[%emt 0:00:24]} 28. Bg6 {[%emt 0:00:37][%mdl 8192] [#]} (28. Nd4 $15) 28... Qe2 $1 $19 {[%emt 0:00:54]} 29. Qd6 {[%emt 0:00:29]} Qe3+ {[%emt 0:00:12]} 30. Kh1 {[%emt 0:00:04] [#]} Ng4 $1 {[%emt 0:00:11] ( -> ...Nf2+)} 31. h3 {[%emt 0:00:33]} Nf2+ {[%emt 0:00:04]} 32. Kh2 {[%emt 0:00:03]} Nxd1 {[%emt 0:00:11]} 33. Bf5 {[%emt 0:01:21]} (33. Nf4 $142 Qb6 34. Qxd1) 33... Qf2 $2 {[%emt 0:00:54]} ({Black should play} 33... Bc8 $19 34. Nd4 Nxc3) 34. Nf4 $1 $11 {[%emt 0:00:18] Strongly threatening Ng6+.} Re8 {[%emt 0:04:32]} 35. Ng6+ {[%emt 0:00:13]} Kh7 $1 {[%emt 0:00:06]} 36. Ne7+ {[%emt 0:00:56]} Kh8 {[%emt 0:00:07]} 37. Ng6+ {[%emt 0:00:32]} Kh7 $1 {[%emt 0:00:09]} 38. Ne7+ {[%emt 0:00:28]} Kh8 {[%emt 0:00:07]} 39. Ng6+ {[%emt 0:00:33]} Kh7 $1 {[%emt 0:00:10]} 40. Qd5 {[%emt 0:00:00] And now Qf7 would win.} Bb7 {[%emt 0:00:00]} 41. Ne7+ {[%emt 0:07:02]} Kh8 {[%emt 0:04:01]} 42. Qg8+ {[%emt 0:03:14]} Rxg8 {[%emt 0:00:09][%csl Gb7][%cal Rf2g2]} 43. Ng6+ {[%emt 0:00:06]} Kh7 {[%emt 0:00:10][%csl Gb7][%cal Rf2g2]} 44. Nf8+ $1 {[%emt 0:00:08][%mdl 64] Discovered Attack (Double check)} Kh8 {[%emt 0:00:08][%csl Gb7][%cal Rf2g2]} 45. Ng6+ {[%emt 0:23:03] Quite a comeback for White.  Weighted Error Value: White=0.44/Black=0.47} 1/2-1/2

[Event "55th Iranian-ch Men Final 2022"]
[Site "Iran"]
[Date "2022.06.16"]
[Round "2.3"]
[White "Atakhan, Abtin"]
[Black "Tahbaz, Arash"]
[Result "1-0"]
[ECO "D37"]
[WhiteElo "2358"]
[BlackElo "2451"]
[Annotator "TA"]
[PlyCount "122"]
[EventDate "2022.06.15"]
[EventType "tourn"]
[EventCountry "IRI"]
[SourceTitle "playchess.com"]
[Source "ChessBase"]
[SourceQuality "1"]
[TimeControl "40/5400+30:1800+30"]

{[%evp 11,122,15,20,26,10,23,25,17,25,26,29,17,19,15,21,17,33,24,23,19,21,25,31,35,35,50,51,45,45,18,16,0,0,-6,10,0,6,6,6,6,7,0,6,0,7,-18,0,-17,0,0,0,0,0,0,0,-2,-2,-2,-2,-9,-9,-9,-9,-21,0,-2,-2,-9,-9,-10,-10,-12,-4,-5,-5,-8,0,0,0,0,0,0,0,0,0,0,0,0,0,0,181,181,187,158,160,0,47,0,180,177,168,161,5618,5618,5490,5490,5157,5097,1818,1756,1559,1450,29985]} 1. d4 {[%emt 0:01:20]} Nf6 {[%emt 0:19:46]} 2. c4 {[%emt 0:00:16]} e6 {[%emt 0:00:12]} 3. Nf3 {[%emt 0:00:09]} d5 {[%emt 0:00:16]} 4. Nc3 {[%emt 0:00:10]} Be7 {[%emt 0:00:04]} 5. Bf4 {[%emt 0:00:14]} O-O {[%emt 0:00:06]} 6. e3 {[%emt 0:00:03]} Nbd7 {[%emt 0:00:06]} 7. a3 {[%emt 0:00:08] D37: Queen's Gambit Declined: 5 Bf4.} c5 {[%emt 0:00:06]} 8. cxd5 {[%emt 0:00:07]} Nxd5 {[%emt 0:00:07]} 9. Nxd5 {[%emt 0:00:07] White has an edge.} exd5 {[%emt 0:00:05]} 10. dxc5 {[%emt 0:00:04]} Nxc5 {[%emt 0:00:04]} 11. Be5 {[%emt 0:00:04]} Bf6 {[%emt 0:00:29]} 12. Bxf6 {[%emt 0:00:31]} Qxf6 {[%emt 0:00:19]} 13. Qd4 {[%emt 0:00:17]} Qd6 {[%emt 0:04:48]} 14. Rd1 {[%emt 0:00:22]} (14. Bd3 {keeps more tension.} Nb3 15. Qh4 h6 16. Rd1) 14... Rd8 {[%emt 0:01:02]} 15. Be2 {[%emt 0:16:54]} Bf5 {[%emt 0:02:44]} 16. Qd2 {[%emt 0:00:09] [#] Prevents Bc2.} Qg6 $146 {[%emt 0:14:17]} ({Predecessor:} 16... Nb3 17. Qc3 Qb6 18. Nd4 Nxd4 19. Qxd4 Qxd4 20. Rxd4 Rac8 21. g4 Rc1+ 22. Rd1 Rxd1+ 23. Bxd1 {½-½ (66) Nepomniachtchi,I (2784)-Nakamura,H (2736) chess24.com INT 2020}) 17. Nh4 {[%emt 0:05:18]} Qg5 {[%emt 0:00:17]} 18. Nxf5 {[%emt 0:00:34]} Qxf5 {[%emt 0:00:35]} 19. O-O {[%emt 0:01:11]} Rd6 {[%emt 0:04:28]} 20. Bf3 {[%emt 0:12:39]} Rad8 {[%emt 0:10:42]} 21. Qa5 {[%emt 0:11:49]} b6 {[%emt 0:06:47]} 22. Qb5 {[%emt 0:12:12]} (22. Qxa7 Qe6 23. Bxd5 Rxd5 24. Rxd5 Qxd5 25. Qxb6 Ne4 $17) 22... Qe5 {[%emt 0:11:33]} 23. Rd2 {[%emt 0:07:13]} g6 {[%emt 0:00:56]} (23... Rh6 24. h3 $14) 24. b4 {[%emt 0:03:14]} Ne6 {[%emt 0:02:51]} 25. Rfd1 {[%emt 0:02:17][%cal Rf3d5]} Kg7 {[%emt 0:00:36]} 26. Bg4 {[%emt 0:07:42]} (26. Bxd5 $2 Nc7 27. Qc4 Rxd5 $19) 26... Ng5 {[%emt 0:01:04]} 27. Rd4 {[%emt 0:01:38]} h5 {[%emt 0:01:10]} 28. Be2 {[%emt 0:02:18]} (28. Bf3 $5) 28... Ne6 {[%emt 0:04:16]} 29. R4d2 {[%emt 0:00:07]} Nc7 {[%emt 0:06:43]} 30. Qd3 {[%emt 0:00:26]} d4 {[%emt 0:01:36]} 31. exd4 {[%emt 0:00:38]} Rxd4 {[%emt 0:00:11]} 32. Qc3 {[%emt 0:00:22]} Ne6 {[%emt 0:00:26][%cal Bc7e6,Be6d4,Bd4b3,Bb3d2][%mdl 32] ...f6 is the strong threat.} 33. Bf1 {[%emt 0:07:01]} Qf6 {[%emt 0:00:47] And now ...Rxd2 would win.} 34. Rxd4 {[%emt 0:00:05]} Nxd4 {[%emt 0:00:58]} 35. Rc1 {[%emt 0:00:02]} Rd5 {[%emt 0:03:04]} 36. h3 {[%emt 0:01:09]} (36. Qd3 {is more complex.} h4 37. Rc8 Rd6 38. h3) 36... Rd6 {[%emt 0:02:06]} 37. Qc7 {[%emt 0:02:59]} Nb3 {[%emt 0:01:29]} 38. Rc3 {[%emt 0:03:04]} Nd2 {[%emt 0:00:37]} 39. Rd3 {[%emt 0:01:39]} (39. Bd3 $2 Rxd3 40. Rxd3 Qa1+ 41. Kh2 Nf1+ 42. Kh1 Ng3+ 43. Kh2 Ne2 $19) (39. Re3 {with more complications.} h4 40. Bb5 a5 41. bxa5 Rd5 42. Qc1) 39... Rxd3 {[%emt 0:01:35]} 40. Bxd3 $11 {[%emt 0:00:00][%mdl 4096] Endgame KQB-KQN} Qa1+ {[%emt 0:00:00]} 41. Kh2 {[%emt 0:00:04]} Qd4 {[%emt 0:03:32]} 42. Be2 {[%emt 0:02:40]} h4 {[%emt 0:05:41]} 43. f3 $1 {[%emt 0:02:40]} g5 {[%emt 0:09:47] Hoping for ...Qf4+.} 44. Kh1 $1 {[%emt 0:00:16]} Kf6 {[%emt 0:03:34]} 45. Qc6+ $1 {[%emt 0:03:01]} (45. Qxa7 Qa1+ 46. Kh2 Qe5+ 47. Kh1 Qxe2 $17) 45... Kf5 {[%emt 0:05:13] White must now prevent ...Qa1+.} 46. Ba6 {[%emt 0:02:03]} Kf4 {[%emt 0:02:17]} 47. Qc7+ {[%emt 0:01:12]} Qe5 {[%emt 0:00:37]} 48. Qc1 {[%emt 0:00:02]} (48. Qxf7+ Kg3) 48... Qd4 {[%emt 0:01:17]} 49. Qc7+ {[%emt 0:00:23]} Qe5 {[%emt 0:00:10]} 50. Qc1 {[%emt 0:00:06]} (50. Qxf7+ {leads to mate.} Kg3) 50... Qd6 {[%emt 0:00:46]} (50... Qe3 $11) 51. Qc3 $1 $18 {[%emt 0:03:16]} f5 {[%emt 0:02:01]} 52. Bd3 {[%emt 0:02:14]} Ke3 {[%emt 0:00:01]} 53. Ba6+ {[%emt 0:04:34]} (53. Bxf5+ $16 Ke2 54. Kg1 (54. Qc2 Qd4 $11)) 53... Kf4 $14 {[%emt 0:01:02]} 54. Bd3 {[%emt 0:00:06]} (54. Bb5 $14) 54... Ke3 $18 {[%emt 0:00:35]} 55. Bxf5+ {[%emt 0:07:05]} Ke2 {[%emt 0:00:01] [#]} 56. Kg1 $36 {[%emt 0:00:39][%mdl 2048] Black is under strong pressure.} (56. Qc2 Qd4 $11) 56... Qd5 $2 {[%emt 0:00:47] [#]} (56... a5 57. f4 (57. bxa5 bxa5 58. f4 gxf4 $16) 57... gxf4 58. Bg4+ (58. bxa5 bxa5 59. Bg4+ f3 $16) 58... f3 59. Bxf3+ (59. bxa5 bxa5 60. Bxf3+ Nxf3+ 61. Qxf3+ Kd2 $16) 59... Nxf3+ 60. Qxf3+ Kd2) 57. Bg4 $1 {[%emt 0:00:44] White is clearly winning.} Qd3 {[%emt 0:01:49]} 58. f4+ $1 {[%emt 0:00:23]} Ke3 {[%emt 0:00:08]} 59. Qxd3+ {[%emt 0:00:35]} Kxd3 {[%emt 0:00:04]} 60. fxg5 {[%emt 0:00:06] Intending g6 and mate.} Kd4 {[%emt 0:00:31]} 61. g6 {[%emt 0:00:24] g7 would kill now.} Kd5 {[%emt 0:01:49] Weighted Error Value: White=0.09 (flawless) /Black=0.10 (very precise)} 1-0

[Event "55th Iranian-ch Men Final 2022"]
[Site "Iran"]
[Date "2022.06.16"]
[Round "2.4"]
[White "Darini, Pouria"]
[Black "Rastbod, Ali"]
[Result "0-1"]
[ECO "B12"]
[WhiteElo "2431"]
[BlackElo "2362"]
[Annotator "TA"]
[PlyCount "90"]
[EventDate "2022.06.15"]
[EventType "tourn"]
[EventCountry "IRI"]
[SourceTitle "playchess.com"]
[Source "ChessBase"]
[SourceQuality "1"]
[TimeControl "40/5400+30:1800+30"]

{[%evp 9,90,11,15,6,14,6,13,3,8,7,7,14,10,0,0,0,14,0,0,0,44,0,0,-1,0,0,4,6,0,0,0,0,6,6,8,8,4,0,2,-49,-8,0,-15,-10,-2,-47,-38,-74,-54,-74,-87,-181,-185,-193,-200,-191,-172,-166,-162,-169,-157,-213,-198,-228,-232,-937,-245,-501,-305,-402,-329,-650,-650,-643,-643,-635,-629,-635,-628,-1700,-937,-29989,-621]} 1. e4 {[%emt 0:07:41]} c6 {[%emt 0:03:49]} 2. d4 {[%emt 0:03:26]} d5 {[%emt 0:00:05]} 3. e5 {[%emt 0:00:10]} c5 {[%emt 0:00:04]} 4. Nf3 {[%emt 0:00:53]} cxd4 {[%emt 0:00:47]} 5. Nxd4 {[%emt 0:01:03]} Nc6 {[%emt 0:01:22]} 6. Nxc6 {[%emt 0:03:03] B12: Caro-Kann: Advance Variation.} bxc6 {[%emt 0:00:01]} 7. Bd3 {[%emt 0:00:17]} e6 {[%emt 0:01:55]} 8. O-O {[%emt 0:00:09] The position is equal.} Ne7 {[%emt 0:00:05]} 9. Nd2 {[%emt 0:09:55]} Ng6 {[%emt 0:01:16] 9...a5 is more fashionable.} 10. Nf3 {[%emt 0:00:10]} Be7 {[%emt 0:00:56]} 11. c4 {[%emt 0:03:09]} O-O {[%emt 0:06:15]} 12. Qc2 {[%emt 0:00:11]} c5 {[%emt 0:07:49] [#]} 13. Re1 $146 {[%emt 0:20:06]} ({Predecessor:} 13. h4 Bxh4 14. cxd5 Bb7 15. dxe6 Bxf3 16. exf7+ Rxf7 17. Bxg6 hxg6 18. gxf3 Qd5 19. Qe4 Qxe4 20. fxe4 {1-0 (48) Bologan,V (2690)-Khenkin,I (2614) Sibenik 2010}) 13... Bb7 {[%emt 0:16:50]} 14. cxd5 {[%emt 0:00:13]} exd5 {[%emt 0:05:27]} 15. Bd2 {[%emt 0:07:20]} d4 {[%emt 0:13:22]} 16. Be4 {[%emt 0:00:27]} Bxe4 {[%emt 0:00:13]} 17. Qxe4 {[%emt 0:02:53]} Qb6 {[%emt 0:08:20]} 18. h4 {[%emt 0:05:55] And now h5 would win.} Rfe8 {[%emt 0:03:58][%cal Oe7f6]} (18... Qxb2 $2 19. Reb1 Qa3 20. h5 $18) 19. h5 {[%emt 0:00:37]} Nf8 {[%emt 0:00:01]} 20. b4 {[%emt 0:12:26]} cxb4 {[%emt 0:10:15]} 21. Nxd4 {[%emt 0:00:07]} Bc5 {[%emt 0:00:04]} 22. Be3 {[%emt 0:00:48]} Bxd4 {[%emt 0:00:11]} 23. Bxd4 {[%emt 0:00:08]} Qe6 {[%emt 0:00:04]} 24. Re3 {[%emt 0:07:40]} ({Better is} 24. f4 $11) 24... Qc4 {[%emt 0:05:03]} 25. Bb2 {[%emt 0:06:41]} Qxe4 {[%emt 0:01:48]} 26. Rxe4 {[%emt 0:00:01]} a5 {[%emt 0:00:18]} 27. Rd1 {[%emt 0:04:59]} Rac8 {[%emt 0:02:44] aiming for ...Rc2.} 28. Rd2 {[%emt 0:00:18] Against Rc2} f5 $1 {[%emt 0:07:55]} 29. Re3 {[%emt 0:01:37]} a4 $1 {[%emt 0:00:54] Black keeps a firm grip on the game.} 30. h6 {[%emt 0:01:00] [#]} (30. a3 $17 {was worth a try.}) 30... Ne6 $1 $19 {[%emt 0:00:48]} 31. hxg7 {[%emt 0:02:06]} a3 {[%emt 0:00:45]} 32. Bxa3 {[%emt 0:00:19]} ({But not} 32. Bd4 $2 Red8 33. Kh2 (33. Red3 $2 Rxd4 34. Rxd4 Nxd4 $19) 33... Rxd4 $19) 32... bxa3 {[%emt 0:01:19]} 33. Rxa3 {[%emt 0:00:00]} Re7 {[%emt 0:01:00] Prevents Ra7.} 34. Rad3 {[%emt 0:00:58]} Kxg7 {[%emt 0:00:27]} 35. Rf3 {[%emt 0:00:32]} (35. Rd7 $17 Kf7 36. R7d5) 35... f4 {[%emt 0:00:49]} 36. Rh3 {[%emt 0:00:37]} Rc5 {[%emt 0:00:37]} 37. Re2 $2 {[%emt 0:00:27]} (37. Kh2) 37... Kg6 $2 {[%emt 0:00:24]} (37... Rc1+ 38. Kh2 Rd7) 38. f3 $2 {[%emt 0:00:34]} (38. Re1 {was called for.}) 38... h5 {[%emt 0:00:40] Hoping for ...Rc1+.} 39. Kf2 {[%emt 0:00:20]} Nd4 {[%emt 0:00:30]} 40. Re4 {[%emt 0:00:00]} (40. Rd2 Nf5 41. Rh1) 40... Rc2+ {[%emt 0:00:00]} 41. Kg1 {[%emt 0:03:55]} Ne2+ {[%emt 0:03:04]} 42. Kh2 {[%emt 0:00:02]} Kg5 {[%emt 0:00:37]} 43. e6 {[%emt 0:01:43]} Ng3 {[%emt 0:00:34]} 44. Re5+ {[%emt 0:00:06]} Kf6 {[%emt 0:00:05]} 45. Ra5 {[%emt 0:00:07]} Rc1 {[%emt 0:00:48] Weighted Error Value: White=0.76/Black=0.30} (45... Nf1+ $142 46. Kg1 Rc1 47. Rc5 Rxc5 48. g3 {[#]} fxg3 $1 49. Kxf1 Rc2 50. Rh4 Rb7 51. Rf4+ Kg5 52. Rg4+ hxg4 53. f4+ Kxf4 54. Kg1 Rb1#) 0-1